fUSD/lending_fUSD_20240420
["ID","MTS","AMOUNT","RATE_DAILY","PERIOD"]
[323014229,1713588640035,-500.0,0.00015068,2]
[323014230,1713588640045,-500.0,0.00015068,2]
[323014231,1713588640054,-909.79,0.00015068,2]
[323014232,1713588640065,-3977.11,0.00015068,2]
[323014233,1713588640076,-500.0,0.00015068,2]
[323014234,1713588640085,-4916.04,0.00015068,2]
[323014235,1713588640095,-1256.13,0.00015068,2]
[323014236,1713588640105,-3981.79,0.00015068,2]
[323014237,1713588640114,-500.0,0.00015068,2]
[323014238,1713588640124,-1950.82,0.00015068,2]
[323014239,1713588640134,-500.0,0.00015068,2]
[323014240,1713588640144,-9990.67,0.00015068,2]
[323014241,1713588640154,-2559.98,0.00015068,2]
[323014242,1713588640163,-500.0,0.00015068,2]
[323014243,1713588640173,-500.0,0.00015068,2]
[323014244,1713588640182,-538.99,0.00015068,2]
[323014245,1713588640193,-5834.18,0.00015068,2]
[323014246,1713588640202,-281.67137401,0.00015068,2]
[323014247,1713588640212,-3200.19,0.00015068,2]
[323014248,1713588640222,-500.24077008,0.00015068,2]
[323014249,1713588640231,-500.0,0.00015068,2]
[323014250,1713588640241,-500.0,0.00015068,2]
[323014251,1713588640251,-14615.96,0.00015068,2]
[323014252,1713588640260,-677.46,0.00015068,2]
[323014253,1713588640272,-1722.15,0.00015068,2]
[323014254,1713588640282,-500.0,0.00015068,2]
[323014255,1713588640292,-1991.0,0.00015068,2]
[323014256,1713588640301,-500.0,0.00015068,2]
[323014257,1713588640311,-1498.82,0.00015068,2]
[323014258,1713588640320,-500.0,0.00015068,2]
[323014259,1713588640329,-500.0,0.00015068,2]
[323014260,1713588640339,-3035.05,0.00015068,2]
[323014261,1713588640349,-501.38,0.00015068,2]
[323014262,1713588640359,-500.0,0.00015068,2]
[323014263,1713588640368,-500.0,0.00015068,2]
[323014264,1713588640378,-418.355493,0.00015068,2]
[323014265,1713588640388,-500.0,0.0001511,2]
[323014266,1713588640397,-500.0,0.0001511,2]
[323014267,1713588640407,-500.0,0.0001511,2]
[323014268,1713588640417,-500.0,0.0001511,2]
[323014269,1713588640426,-501.89,0.0001511,2]
[323014270,1713588640436,-500.0,0.0001511,2]
[323014271,1713588640446,-500.0,0.0001511,2]
[323014272,1713588640455,-500.0,0.0001511,2]
[323014273,1713588640464,-500.0,0.0001511,2]
[323014274,1713588640474,-500.0,0.0001511,2]
[323014275,1713588640483,-500.0,0.0001511,2]
[323014276,1713588640492,-500.0,0.0001511,2]
[323014277,1713588640505,-500.0,0.0001511,2]
[323014278,1713588640515,-500.0,0.0001511,2]
[323014279,1713588640526,-500.0,0.0001511,2]
[323014280,1713588640536,-500.0,0.0001511,2]
[323014281,1713588640545,-500.0,0.0001511,2]
[323014282,1713588640554,-500.0,0.0001511,2]
[323014283,1713588640564,-500.0,0.0001511,2]
[323014284,1713588640573,-500.0,0.0001511,2]
[323014285,1713588640582,-500.0,0.0001511,2]
[323014286,1713588640591,-500.0,0.0001511,2]
[323014287,1713588640601,-500.0,0.0001511,2]
[323014288,1713588640610,-500.0,0.0001511,2]
[323014289,1713588640619,-500.0,0.0001511,2]
[323014290,1713588640628,-500.0,0.0001511,2]
[323014291,1713588640637,-500.0,0.0001511,2]
[323014292,1713588640646,-500.88,0.0001511,2]
[323014293,1713588640655,-500.0,0.0001511,2]
[323014294,1713588640665,-500.0,0.0001511,2]
[323014295,1713588640674,-500.0,0.0001511,2]
[323014296,1713588640717,-500.0,0.0001511,2]
[323014297,1713588640728,-500.0,0.0001511,2]
[323014298,1713588640738,-500.0,0.0001511,2]
[323014299,1713588640748,-500.0,0.0001511,2]
[323014300,1713588640759,-500.0,0.0001511,2]
[323014301,1713588640769,-500.0,0.0001511,2]
[323014302,1713588640780,-500.0,0.0001511,2]
[323014303,1713588640790,-500.0,0.0001511,2]
[323014304,1713588640800,-500.0,0.0001511,2]
[323014305,1713588640810,-500.0,0.0001511,2]
[323014306,1713588640820,-500.0,0.0001511,2]
[323014307,1713588640831,-500.0,0.0001511,2]
[323014308,1713588640840,-500.0,0.0001511,2]
[323014309,1713588640850,-500.0,0.0001511,2]
[323014310,1713588640860,-500.0,0.0001511,2]
[323014311,1713588640869,-500.0,0.0001511,2]
[323014312,1713588640879,-500.0,0.0001511,2]
[323014313,1713588640889,-500.0,0.0001511,2]
[323014314,1713588640898,-500.0,0.0001511,2]
[323014315,1713588640908,-500.0,0.0001511,2]
[323014316,1713588640918,-500.0,0.0001511,2]
[323014317,1713588640928,-500.0,0.0001511,2]
[323014318,1713588640937,-500.0,0.0001511,2]
[323014319,1713588640947,-500.0,0.0001511,2]
[323014320,1713588640956,-500.0,0.0001511,2]
[323014321,1713588640966,-500.0,0.0001511,2]
[323014322,1713588640975,-292.9,0.0001511,2]
[323014323,1713588640985,-500.0,0.0001511,2]
[323014324,1713588640994,-500.0,0.0001511,2]
[323014325,1713588641005,-500.0,0.0001511,2]
[323014326,1713588641015,-500.0,0.0001511,2]
[323014327,1713588641025,-500.0,0.0001511,2]
[323014328,1713588641035,-500.0,0.0001511,2]
[323014329,1713588641045,-500.0,0.0001511,2]
[323014330,1713588641055,-500.0,0.0001511,2]
[323014331,1713588641067,-500.0,0.0001511,2]
[323014332,1713588641078,-500.0,0.0001511,2]
[323014333,1713588641171,-500.0,0.0001511,2]
[323014334,1713588641181,-500.0,0.0001511,2]
[323014335,1713588641190,-500.0,0.0001511,2]
[323014336,1713588641200,-500.0,0.0001511,2]
[323014337,1713588641210,-500.0,0.0001511,2]
[323014338,1713588641220,-500.0,0.0001511,2]
[323014339,1713588641230,-500.0,0.0001511,2]
[323014340,1713588641240,-500.0,0.0001511,2]
[323014341,1713588641250,-500.0,0.0001511,2]
[323014342,1713588641260,-500.0,0.0001511,2]
[323014343,1713588641271,-500.0,0.0001511,2]
[323014344,1713588641281,-500.0,0.0001511,2]
[323014345,1713588641291,-500.0,0.0001511,2]
[323014346,1713588641301,-473.25,0.0001511,2]
[323014347,1713588641312,-500.0,0.0001511,2]
[323014348,1713588641321,-500.0,0.0001511,2]
[323014349,1713588641331,-150.0,0.00015131,2]
[323014350,1713588641341,-748.0,0.000152,2]
[323014351,1713588641351,-314.0,0.000152,2]
[323014352,1713588641361,-1000.0,0.0001521,2]
[323014353,1713588641371,-8170.01942061,0.00015242,2]
[323014354,1713588641380,-167.8463933,0.00015242,2]
[323014355,1713588641390,-150.0,0.00015253,2]
[323014356,1713588641400,-753.65,0.00015342,2]
[323014357,1713588641410,-500.0,0.00015342,2]
[323014358,1713588641420,-500.0,0.00015342,2]
[323014359,1713588641430,-598.71,0.00015342,2]
[323014360,1713588641441,-500.0,0.00015342,2]
[323014361,1713588641450,-542.97,0.00015342,2]
[323014362,1713588641461,-500.0,0.00015342,2]
[323014363,1713588641471,-500.0,0.00015342,2]
[323014364,1713588641481,-500.0,0.00015342,2]
[323014365,1713588641490,-500.0,0.00015342,2]
[323014366,1713588641500,-500.0,0.00015342,2]
[323014367,1713588641510,-718.28,0.00015342,2]
[323014368,1713588641521,-500.0,0.00015342,2]
[323014369,1713588641531,-500.0,0.00015342,2]
[323014370,1713588641542,-542.33389465,0.00015342,2]
[323014371,1713588641552,-782.96,0.00015342,2]
[323014372,1713588641562,-500.0,0.00015342,2]
[323014373,1713588641573,-500.0,0.00015342,2]
[323014374,1713588641583,-500.0,0.00015342,2]
[323014375,1713588641593,-500.0,0.00015342,2]
[323014376,1713588641603,-500.0,0.00015342,2]
[323014377,1713588641612,-500.0,0.00015342,2]
[323014378,1713588641622,-600.32,0.00015342,2]
[323014379,1713588641632,-592.85,0.00015342,2]
[323014380,1713588641643,-500.0,0.00015342,2]
[323014381,1713588641653,-500.0,0.00015342,2]
[323014382,1713588641663,-500.0,0.00015342,2]
[323014383,1713588641673,-500.0,0.00015342,2]
[323014384,1713588641683,-500.0,0.00015342,2]
[323014385,1713588641692,-500.0,0.00015342,2]
[323014386,1713588641702,-500.0,0.00015342,2]
[323014387,1713588641712,-500.0,0.00015342,2]
[323014388,1713588641722,-500.0,0.00015342,2]
[323014389,1713588641733,-366.31109413,0.00015342,2]
[323014390,1713588641743,-500.0,0.00015342,2]
[323014391,1713588641753,-500.0,0.00015342,2]
[323014392,1713588641763,-500.0,0.00015342,2]
[323014393,1713588641775,-500.0,0.00015342,2]
[323014394,1713588641784,-500.0,0.00015342,2]
[323014395,1713588641794,-500.0,0.00015342,2]
[323014396,1713588641803,-500.0,0.00015342,2]
[323014397,1713588641813,-500.0,0.00015342,2]
[323014398,1713588641822,-500.0,0.00015342,2]
[323014399,1713588641833,-500.0,0.00015342,2]
[323014400,1713588641843,-500.0,0.00015342,2]
[323014401,1713588641853,-500.0,0.00015342,2]
[323014402,1713588641863,-668.3,0.00015342,2]
[323014403,1713588641872,-500.0,0.00015342,2]
[323014404,1713588641882,-500.0,0.00015342,2]
[323014405,1713588641892,-645.15,0.00015342,2]
[323014406,1713588641901,-500.0,0.00015342,2]
[323014407,1713588641912,-500.0,0.00015342,2]
[323014408,1713588641921,-551.04,0.00015342,2]
[323014409,1713588641931,-500.0,0.00015342,2]
[323014410,1713588641940,-500.0,0.00015342,2]
[323014411,1713588641949,-775.45,0.00015342,2]
[323014412,1713588641959,-500.0,0.00015342,2]
[323014413,1713588641969,-500.0,0.00015342,2]
[323014414,1713588641979,-500.0,0.00015342,2]
[323014415,1713588641989,-500.0,0.00015342,2]
[323014416,1713588642000,-500.0,0.00015342,2]
[323014417,1713588642010,-500.0,0.00015342,2]
[323014418,1713588642021,-500.0,0.00015342,2]
[323014419,1713588642032,-500.0,0.00015342,2]
[323014420,1713588642042,-694.18,0.00015342,2]
[323014421,1713588642053,-500.0,0.00015342,2]
[323014422,1713588642064,-543.97,0.00015342,2]
[323014423,1713588642076,-500.0,0.00015342,2]
[323014424,1713588642086,-880.75,0.00015342,2]
[323014425,1713588642097,-543.33,0.00015342,2]
[323014426,1713588642107,-500.0,0.00015342,2]
[323014427,1713588642119,-500.0,0.00015342,2]
[323014428,1713588642130,-743.33,0.00015342,2]
[323014429,1713588642142,-500.0,0.00015342,2]
[323014430,1713588642153,-963.43,0.00015342,2]
[323014431,1713588642164,-500.0,0.00015342,2]
[323014432,1713588642175,-500.0,0.00015342,2]
[323014433,1713588642185,-500.0,0.00015342,2]
[323014434,1713588642195,-500.0,0.00015342,2]
[323014435,1713588642207,-536.33,0.00015342,2]
[323014436,1713588642218,-591.71960888,0.00015342,2]
[323014437,1713588642228,-500.0,0.00015342,2]
[323014438,1713588642239,-500.0,0.00015342,2]
[323014439,1713588642249,-579.1,0.00015342,2]
[323014440,1713588642259,-500.0,0.00015342,2]
[323014441,1713588642268,-500.0,0.00015342,2]
[323014442,1713588642279,-500.0,0.00015342,2]
[323014443,1713588642289,-618.31,0.00015342,2]
[323014444,1713588642299,-500.0,0.00015342,2]
[323014445,1713588642309,-500.0,0.00015342,2]
[323014446,1713588642319,-500.0,0.00015342,2]
[323014447,1713588642328,-500.0,0.00015342,2]
[323014448,1713588642338,-500.0,0.00015342,2]
[323014449,1713588642347,-500.0,0.00015342,2]
[323014450,1713588642356,-500.0,0.00015342,2]
[323014451,1713588642365,-500.0,0.00015342,2]
[323014452,1713588642374,-500.0,0.00015342,2]
[323014453,1713588642384,-500.0,0.00015342,2]
[323014454,1713588642393,-500.0,0.00015342,2]
[323014455,1713588642402,-500.0,0.00015342,2]
[323014456,1713588642411,-500.0,0.00015342,2]
[323014457,1713588642420,-502.85408837,0.00015342,2]
[323014458,1713588642429,-500.0,0.00015342,2]
[323014459,1713588642438,-500.0,0.00015342,2]
[323014460,1713588642447,-500.0,0.00015342,2]
[323014461,1713588642457,-739.77,0.00015342,2]
[323014462,1713588642466,-725.44,0.00015342,2]
[323014463,1713588642475,-500.0,0.00015342,2]
[323014464,1713588642484,-500.0,0.00015342,2]
[323014465,1713588642493,-500.0,0.00015342,2]
[323014466,1713588642502,-500.0,0.00015342,2]
[323014467,1713588642512,-500.0,0.00015342,2]
[323014468,1713588642521,-832.65,0.00015342,2]
[323014469,1713588642530,-500.0,0.00015342,2]
[323014470,1713588642539,-691.71,0.00015342,2]
[323014471,1713588642549,-500.0,0.00015342,2]
[323014472,1713588642557,-500.0,0.00015342,2]
[323014473,1713588642567,-500.0,0.00015342,2]
[323014474,1713588642576,-1113.7,0.00015342,2]
[323014475,1713588642586,-500.0,0.00015342,2]
[323014476,1713588642595,-775.96,0.00015342,2]
[323014477,1713588642604,-637.78,0.00015342,2]
[323014479,1713588642613,-588.44,0.00015342,2]
[323014481,1713588642622,-500.0,0.00015342,2]
[323014483,1713588642631,-500.0,0.00015342,2]
[323014485,1713588642640,-500.0,0.00015342,2]
[323014487,1713588642650,-500.0,0.00015342,2]
[323014489,1713588642659,-500.0,0.00015342,2]
[323014491,1713588642667,-500.0,0.00015342,2]
[323014493,1713588642676,-773.75,0.00015342,2]
[323014494,1713588642685,-500.0,0.00015342,2]
[323014495,1713588642695,-500.0,0.00015342,2]
[323014496,1713588642704,-509.98,0.00015342,2]
[323014497,1713588642713,-527.65,0.00015342,2]
[323014498,1713588642722,-571.2,0.00015342,2]
[323014499,1713588642731,-500.0,0.00015342,2]
[323014500,1713588642741,-500.0,0.00015342,2]
[323014501,1713588642750,-500.0,0.00015342,2]
[323014502,1713588642759,-500.0,0.00015342,2]
[323014503,1713588642768,-500.0,0.00015342,2]
[323014504,1713588642779,-500.0,0.00015342,2]
[323014505,1713588642789,-500.0,0.00015342,2]
[323014506,1713588642798,-1020.21,0.00015342,2]
[323014507,1713588642807,-500.0,0.00015342,2]
[323014508,1713588642817,-500.0,0.00015342,2]
[323014509,1713588642827,-615.98,0.00015342,2]
[323014510,1713588642836,-500.0,0.00015342,2]
[323014511,1713588642845,-500.0,0.00015342,2]
[323014512,1713588642855,-500.0,0.00015342,2]
[323014513,1713588642865,-743.37,0.00015342,2]
[323014514,1713588642875,-500.0,0.00015342,2]
[323014515,1713588642884,-625.47,0.00015342,2]
[323014516,1713588642894,-500.0,0.00015342,2]
[323014517,1713588642903,-694.55,0.00015342,2]
[323014518,1713588642913,-500.34,0.00015342,2]
[323014519,1713588642923,-500.0,0.00015342,2]
[323014520,1713588642933,-644.0,0.00015342,2]
[323014521,1713588642942,-639.09,0.00015342,2]
[323014522,1713588642952,-500.0,0.00015342,2]
[323014523,1713588642962,-852.89,0.00015342,2]
[323014524,1713588642972,-510.67,0.00015342,2]
[323014525,1713588642981,-532.61,0.00015342,2]
[323014526,1713588642991,-928.91,0.00015342,2]
[323014527,1713588643001,-500.0,0.00015342,2]
[323014528,1713588643011,-500.0,0.00015342,2]
[323014529,1713588643023,-500.0,0.00015342,2]
[323014530,1713588643032,-500.0,0.00015342,2]
[323014531,1713588643041,-637.71,0.00015342,2]
[323014532,1713588643051,-500.0,0.00015342,2]
[323014533,1713588643061,-177.21263972,0.00015342,2]
[323014534,1713588643073,-500.0,0.00015342,2]
[323014535,1713588643083,-500.0,0.00015342,2]
[323014536,1713588643092,-500.0,0.00015342,2]
[323014537,1713588643101,-750.07,0.00015342,2]
[323014538,1713588643111,-500.0,0.00015342,2]
[323014539,1713588643120,-500.0,0.00015342,2]
[323014540,1713588643129,-625.11,0.00015342,2]
[323014541,1713588643138,-894.76,0.00015342,2]
[323014542,1713588643149,-774.2,0.00015342,2]
[323014543,1713588643160,-635.53,0.00015342,2]
[323014544,1713588643170,-521.35,0.00015342,2]
[323014545,1713588643180,-500.0,0.00015342,2]
[323014546,1713588643189,-500.0,0.00015342,2]
[323014547,1713588643197,-500.0,0.00015342,2]
[323014548,1713588643207,-500.0,0.00015342,2]
[323014549,1713588643217,-500.0,0.00015342,2]
[323014550,1713588643226,-500.0,0.00015342,2]
[323014551,1713588643235,-500.0,0.00015342,2]
[323014552,1713588643245,-500.0,0.00015342,2]
[323014553,1713588643255,-571.88,0.00015342,2]
[323014554,1713588643264,-500.0,0.00015342,2]
[323014555,1713588643275,-500.0,0.00015342,2]
[323014556,1713588643284,-500.0,0.00015342,2]
[323014557,1713588643294,-573.24,0.00015342,2]
[323014558,1713588643304,-833.96,0.00015342,2]
[323014559,1713588643315,-500.0,0.00015342,2]
[323014560,1713588643325,-645.04,0.00015342,2]
[323014561,1713588643334,-969.44,0.00015342,2]
[323014562,1713588643344,-500.0,0.00015342,2]
[323014563,1713588643353,-500.0,0.00015342,2]
[323014565,1713588643363,-500.0,0.00015342,2]
[323014566,1713588643372,-500.0,0.00015342,2]
[323014567,1713588643381,-572.04,0.00015342,2]
[323014568,1713588643390,-500.0,0.00015342,2]
[323014569,1713588643399,-1277.9,0.00015342,2]
[323014570,1713588643409,-500.0,0.00015342,2]
[323014571,1713588643418,-513.06,0.00015342,2]
[323014574,1713588643427,-500.0,0.00015342,2]
[323014575,1713588643436,-500.0,0.00015342,2]
[323014577,1713588643445,-647.33,0.00015342,2]
[323014578,1713588643454,-1020.08,0.00015342,2]
[323014579,1713588643463,-767.62,0.00015342,2]
[323014580,1713588643472,-823.3,0.00015342,2]
[323014581,1713588643482,-500.0,0.00015342,2]
[323014582,1713588643492,-500.0,0.00015342,2]
[323014583,1713588643502,-500.0,0.00015342,2]
[323014584,1713588643511,-500.0,0.00015342,2]
[323014585,1713588643521,-500.0,0.00015342,2]
[323014586,1713588643530,-500.0,0.00015342,2]
[323014587,1713588643539,-500.0,0.00015342,2]
[323014588,1713588643548,-328.99,0.00015342,2]
[323014589,1713588643558,-1155.67,0.00015342,2]
[323014590,1713588643566,-754.57,0.00015342,2]
[323014591,1713588643575,-500.0,0.00015342,2]
[323014592,1713588643585,-861.29,0.00015342,2]
[323014593,1713588643593,-722.87,0.00015342,2]
[323014594,1713588643603,-790.36,0.00015342,2]
[323014595,1713588643612,-604.08,0.00015342,2]
[323014596,1713588643621,-500.0,0.00015342,2]
[323014597,1713588643630,-500.0,0.00015342,2]
[323014598,1713588643639,-524.44,0.00015342,2]
[323014599,1713588643648,-500.0,0.00015342,2]
[323014600,1713588643658,-500.0,0.00015342,2]
[323014601,1713588643667,-500.0,0.00015342,2]
[323014602,1713588643676,-1044.95,0.00015342,2]
[323014603,1713588643686,-846.88,0.00015342,2]
[323014604,1713588643695,-1239.75,0.00015342,2]
[323014605,1713588643705,-500.0,0.00015342,2]
[323014606,1713588643714,-286.86,0.00015342,2]
[323014607,1713588643723,-539.79,0.00015342,2]
[323014608,1713588643733,-500.0,0.00015342,2]
[323014609,1713588643742,-523.68,0.00015342,2]
[323014610,1713588643752,-500.0,0.00015342,2]
[323014611,1713588643761,-500.0,0.00015342,2]
[323014612,1713588643772,-500.0,0.00015342,2]
[323014613,1713588643781,-551.79,0.00015342,2]
[323014614,1713588643790,-857.17,0.00015342,2]
[323014615,1713588643800,-500.0,0.00015342,2]
[323014616,1713588643809,-1724.94,0.00015342,2]
[323014617,1713588643818,-500.0,0.00015342,2]
[323014618,1713588643828,-534.1,0.00015342,2]
[323014619,1713588643838,-500.0,0.00015342,2]
[323014620,1713588643847,-1289.5,0.00015342,2]
[323014621,1713588643857,-907.25,0.00015342,2]
[323014622,1713588643867,-1112.05,0.00015342,2]
[323014623,1713588643876,-536.04,0.00015342,2]
[323014624,1713588643886,-500.0,0.00015342,2]
[323014625,1713588643895,-704.43,0.00015342,2]
[323014626,1713588643905,-500.0,0.00015342,2]
[323014627,1713588643914,-1624.22,0.00015342,2]
[323014628,1713588643924,-500.0,0.00015342,2]
[323014629,1713588643933,-166.91005396,0.00015342,2]
[323014630,1713588643943,-823.85,0.00015342,2]
[323014631,1713588643952,-553.13,0.00015342,2]
[323014632,1713588643962,-500.0,0.00015342,2]
[323014633,1713588643973,-504.26,0.00015342,2]
[323014634,1713588643982,-500.0,0.00015342,2]
[323014635,1713588643992,-1562.8,0.00015342,2]
[323014636,1713588644001,-769.72,0.00015342,2]
[323014637,1713588644011,-1673.62,0.00015342,2]
[323014638,1713588644022,-500.0,0.00015342,2]
[323014639,1713588644032,-500.0,0.00015342,2]
[323014640,1713588644041,-979.88,0.00015342,2]
[323014641,1713588644051,-1793.12,0.00015342,2]
[323014642,1713588644060,-500.0,0.00015342,2]
[323014643,1713588644071,-717.52,0.00015342,2]
[323014644,1713588644081,-500.0,0.00015342,2]
[323014645,1713588644090,-500.0,0.00015342,2]
[323014646,1713588644099,-833.72,0.00015342,2]
[323014647,1713588644109,-500.0,0.00015342,2]
[323014648,1713588644119,-500.0,0.00015342,2]
[323014649,1713588644127,-500.0,0.00015342,2]
[323014650,1713588644137,-1027.38,0.00015342,2]
[323014651,1713588644146,-500.0,0.00015342,2]
[323014652,1713588644156,-500.0,0.00015342,2]
[323014653,1713588644168,-572.17,0.00015342,2]
[323014654,1713588644177,-500.0,0.00015342,2]
[323014655,1713588644186,-1202.55,0.00015342,2]
[323014656,1713588644196,-500.0,0.00015342,2]
[323014657,1713588644205,-899.24,0.00015342,2]
[323014658,1713588644214,-500.0,0.00015342,2]
[323014659,1713588644223,-681.76,0.00015342,2]
[323014660,1713588644232,-500.0,0.00015342,2]
[323014661,1713588644242,-500.0,0.00015342,2]
[323014662,1713588644251,-500.0,0.00015342,2]
[323014663,1713588644260,-500.0,0.00015342,2]
[323014664,1713588644270,-1858.19,0.00015342,2]
[323014665,1713588644279,-500.0,0.00015342,2]
[323014666,1713588644289,-500.0,0.00015342,2]
[323014667,1713588644298,-500.0,0.00015342,2]
[323014668,1713588644308,-1107.7,0.00015342,2]
[323014669,1713588644317,-1605.31,0.00015342,2]
[323014670,1713588644327,-500.0,0.00015342,2]
[323014671,1713588644336,-500.0,0.00015342,2]
[323014672,1713588644345,-1486.46,0.00015342,2]
[323014673,1713588644355,-539.78,0.00015342,2]
[323014674,1713588644364,-1511.87,0.00015342,2]
[323014675,1713588644373,-500.0,0.00015342,2]
[323014676,1713588644383,-654.92,0.00015342,2]
[323014677,1713588644392,-622.89,0.00015342,2]
[323014678,1713588644402,-500.0,0.00015342,2]
[323014679,1713588644411,-500.0,0.00015342,2]
[323014680,1713588644421,-577.97,0.00015342,2]
[323014681,1713588644430,-702.22,0.00015342,2]
[323014682,1713588644440,-500.0,0.00015342,2]
[323014683,1713588644449,-500.0,0.00015342,2]
[323014684,1713588644459,-817.96,0.00015342,2]
[323014685,1713588644468,-676.73,0.00015342,2]
[323014686,1713588644478,-1437.68,0.00015342,2]
[323014687,1713588644488,-1114.38,0.00015342,2]
[323014688,1713588644497,-1366.37,0.00015342,2]
[323014689,1713588644507,-718.29,0.00015342,2]
[323014690,1713588644517,-1499.7,0.00015342,2]
[323014691,1713588644530,-151.0,0.00015342,2]
[323014692,1713588644540,-500.0,0.00015342,2]
[323014693,1713588644549,-500.0,0.00015342,2]
[323014694,1713588644558,-663.51,0.00015342,2]
[323014695,1713588644567,-940.02,0.00015342,2]
[323014696,1713588644576,-559.11,0.00015342,2]
[323014697,1713588644585,-500.0,0.00015342,2]
[323014698,1713588644594,-500.0,0.00015342,2]
[323014699,1713588644603,-931.41,0.00015342,2]
[323014700,1713588644612,-500.0,0.00015342,2]
[323014701,1713588644621,-1638.53,0.00015342,2]
[323014702,1713588644630,-500.0,0.00015342,2]
[323014703,1713588644640,-622.37,0.00015342,2]
[323014704,1713588644649,-500.0,0.00015342,2]
[323014705,1713588644659,-500.0,0.00015342,2]
[323014706,1713588644668,-961.47,0.00015342,2]
[323014707,1713588644677,-1151.23,0.00015342,2]
[323014708,1713588644687,-500.0,0.00015342,2]
[323014709,1713588644696,-500.0,0.00015342,2]
[323014710,1713588644705,-1072.78,0.00015342,2]
[323014711,1713588644714,-967.78,0.00015342,2]
[323014712,1713588644724,-500.0,0.00015342,2]
[323014713,1713588644733,-1292.78,0.00015342,2]
[323014714,1713588644742,-500.0,0.00015342,2]
[323014715,1713588644752,-500.0,0.00015342,2]
[323014716,1713588644761,-1536.7,0.00015342,2]
[323014717,1713588644770,-500.0,0.00015342,2]
[323014718,1713588644781,-599.31,0.00015342,2]
[323014719,1713588644790,-500.0,0.00015342,2]
[323014720,1713588644799,-2552.47,0.00015342,2]
[323014721,1713588644809,-613.14398352,0.00015342,2]
[323014722,1713588644818,-419.82773061,0.00015342,2]
[323014723,1713588644827,-412.09763732,0.00015342,2]
[323014724,1713588644836,-500.0,0.00015342,2]
[323014725,1713588644845,-1230.31,0.00015342,2]
[323014726,1713588644854,-1147.49,0.00015342,2]
[323014727,1713588644863,-500.0,0.00015342,2]
[323014728,1713588644873,-500.0,0.00015342,2]
[323014729,1713588644882,-500.0,0.00015342,2]
[323014730,1713588644891,-655.97,0.00015342,2]
[323014731,1713588644900,-574.1,0.00015342,2]
[323014732,1713588644909,-532.74,0.00015342,2]
[323014733,1713588644919,-500.0,0.00015342,2]
[323014734,1713588644929,-500.0,0.00015342,2]
[323014735,1713588644939,-1048.63,0.00015342,2]
[323014736,1713588644948,-2509.57,0.00015342,2]
[323014737,1713588644957,-1411.63,0.00015342,2]
[323014738,1713588644966,-500.0,0.00015342,2]
[323014739,1713588644976,-500.0,0.00015342,2]
[323014740,1713588644985,-500.0,0.00015342,2]